[Event "CZE-ch U16 Open 2023"]
[Site "Teplice"]
[Date "2023.03.11"]
[Round "1.1"]
[White "Janous, Marek"]
[Black "Zezula, Jakub"]
[Result "1-0"]
[ECO "C47"]
[WhiteElo "2124"]
[BlackElo "1963"]
[Annotator "TA"]
[PlyCount "123"]
[EventDate "2023.03.09"]
[EventType "swiss"]
[EventCountry "CZE"]
[SourceTitle "playchess.com"]
[Source "ChessBase"]
[SourceQuality "1"]
[TimeControl "40/5400+30:1800+30"]

{[%evp 17,123,0,0,-11,0,11,20,24,74,81,74,77,80,87,87,68,86,77,44,42,66,73,80,21,15,6,9,5,5,8,9,9,18,8,8,14,41,27,46,12,14,19,37,30,116,75,110,53,64,29,26,11,8,0,81,62,81,76,316,72,56,25,150,145,431,412,501,501,403,100,107,107,107,107,107,107,137,0,0,0,582,422,1131,819,602,0,0,0,0,0,0,0,0,0,0,0,0,0,12848,12847,27999,27999,27999,27999,27999,27999,27999,27999]} 1. e4 {[%emt 0:00:07]} e5 {[%emt 0:00:09]} 2. Nf3 {[%emt 0:00:07]} Nc6 {[%emt 0:00:07]} 3. Nc3 {[%emt 0:00:38]} Nf6 {[%emt 0:00:43]} 4. d4 {[%emt 0:00:17]} exd4 {[%emt 0:01:03]} 5. Nxd4 {[%emt 0:00:24]} Bb4 {[%emt 0:01:09]} 6. Nxc6 {[%emt 0:00:20]} bxc6 {[%emt 0:00:29]} 7. Bd3 {[%emt 0:00:08]} d5 {[%emt 0:01:31]} 8. exd5 {[%emt 0:00:11]} cxd5 {[%emt 0:02:58]} 9. O-O {[%emt 0:00:08]} O-O {[%emt 0:02:08]} 10. h3 {[%emt 0:00:13] Prevents Bg4. C47: Scotch Four Knights and Four Knights with 4 g3.} h6 {[%emt 0:09:27]} 11. Qf3 {[%emt 0:00:34]} Bd6 {[%emt 0:02:00]} 12. Nb5 {[%emt 0:05:25] [#] The position is equal.} (12. Nxd5 $2 Nxd5 13. Qe4 (13. Qxd5 $2 Bh2+ {[%mdl 64] Discovered Attack} 14. Kxh2 Qxd5 $19) 13... g6 14. Bxh6 (14. Qxd5 $2 Bh2+ {[%mdl 64] Discovered Attack} 15. Kxh2 Qxd5 $19) 14... Re8 $19) 12... Ba6 $146 {[%emt 0:09:40]} (12... Bc5 $11) ({Predecessor:} 12... Bc5) 13. Nxd6 $16 {[%emt 0:06:17]} Qxd6 {[%emt 0:01:01]} 14. Bf4 {[%emt 0:00:54]} Qc6 {[%emt 0:07:06]} 15. Bxa6 {[%emt 0:02:48]} Qxa6 {[%emt 0:02:40]} 16. Bxc7 {[%emt 0:01:04]} Rac8 {[%emt 0:01:21]} 17. Be5 {[%emt 0:00:31]} Rxc2 {[%emt 0:05:27]} 18. Qd1 {[%emt 0:09:05]} (18. Rad1 {feels hotter.} Ne4 19. Qg4 f6 20. Bd4) 18... Rfc8 {[%emt 0:15:38]} 19. Bc3 {[%emt 0:02:05]} Qe2 {[%emt 0:00:44] [#]} 20. Qxe2 {[%emt 0:00:06]} ({White should play} 20. Qd4 $1 $16) 20... Rxe2 $11 {[%emt 0:00:06]} 21. Rfe1 {[%emt 0:03:28]} Rxe1+ {[%emt 0:03:17]} 22. Rxe1 {[%emt 0:00:35][%mdl 4096] Endgame KRB-KRN} Ne4 $1 {[%emt 0:00:35]} 23. Bd4 {[%emt 0:01:20]} a6 {[%emt 0:03:30]} 24. f3 {[%emt 0:05:21]} Ng3 {[%emt 0:05:53]} 25. Be5 {[%emt 0:00:53]} Nf5 26. g4 {[%emt 0:00:41]} Nh4 {[%emt 0:03:09]} (26... f6 $5 27. Bxf6 (27. gxf5 fxe5 28. Rxe5 d4 $11) 27... gxf6 28. gxf5 Rc2 $16) 27. Kf2 g5 {[%emt 0:01:32]} 28. Re2 {[%emt 0:08:05]} Ng6 29. Bg3 {[%emt 0:02:29]} Kg7 {[%emt 0:02:22]} 30. Ke3 {[%emt 0:03:31]} Nf8 {[%emt 0:11:50]} (30... Rc4 $11) 31. Kd4 {[%emt 0:08:37]} Rd8 {[%emt 0:02:14]} 32. Be5+ {[%emt 0:03:35]} (32. Kc5 $16) 32... f6 $14 {[%emt 0:03:26]} 33. Bg3 {[%emt 0:00:21]} (33. Bc7 $5 Rd7 $8 34. Bg3 $14) 33... Kf7 {[%emt 0:00:07] Repels Re7+} 34. Rc2 {[%emt 0:01:01]} Ne6+ {[%emt 0:00:26]} 35. Kd3 {[%emt 0:00:16]} Rd7 {[%emt 0:02:22]} (35... h5 $11 {remains equal.}) 36. Rc6 $16 {[%emt 0:02:12][%cal Ob2b4]} Rb7 {[%emt 0:00:41]} 37. b3 {[%emt 0:01:04][%cal Bb2b3,Bb3b4][%mdl 32]} (37. Rxa6 $2 Nc5+ 38. Kc2 Nxa6 $19) 37... Ke7 $2 {[%emt 0:00:55]} (37... a5 $16) 38. Rc8 $2 {[%emt 0:01:10]} (38. Rxa6 $2 Nc5+ 39. Kc3 Nxa6 $19) (38. Bd6+ $18 {and the rest is easy.} Kf7 39. Rxa6) 38... Kf7 {[%emt 0:00:59]} 39. Rb8 {[%emt 0:06:13]} Rd7 {[%emt 0:00:37]} (39... Rxb8 $11 {keeps the balance.} 40. Bxb8 Nd8) 40. b4 {[%emt 0:00:51]} Kg6 $2 {[%emt 0:00:32][%mdl 8192]} (40... Re7 $16) 41. Rb6 $18 {[%emt 0:30:30][%csl LRa6,LRe6]} Nf4+ {[%emt 0:04:32]} 42. Bxf4 {[%emt 0:00:00]} gxf4 {[%emt 0:00:28] KR-KR} 43. h4 $2 {[%emt 0:00:00]} (43. Rxa6 Rb7 44. Kc3 Rc7+ 45. Kd2 Rb7 $18) (43. Kd4 $18 {is more deadly.}) 43... Re7 $16 {[%emt 0:00:47]} 44. Rxa6 {[%emt 0:00:00]} Re3+ {[%emt 0:00:38]} 45. Kd4 {[%emt 0:00:00] Black must now prevent b5. White is more active.} Rxf3 {[%emt 0:00:15]} 46. b5 $1 {[%emt 0:00:00][%cal Ob5b6]} Rf1 {[%emt 0:02:58] [#]} 47. Ra3 {[%emt 0:00:00]} (47. Ra4 $1 $16 f3 48. Ke3 (48. Kxd5 $2 Rd1+ 49. Kc5 f2 $19)) 47... f3 $1 $11 {[%emt 0:02:20]} 48. Rb3 {[%emt 0:00:00]} f2 $2 {[%emt 0:02:21][%mdl 8192]} (48... h5 $1 $11 {and Black is okay.} 49. gxh5+ (49. Kxd5 hxg4 50. b6 Rd1+ 51. Kc5 f2 $19) 49... Kxh5) 49. Ke3 {[%emt 0:00:00] b6 would be deadly.} (49. Kxd5 Rd1+ 50. Kc5 f1=Q 51. h5+ Kg5 52. Rc3 Qf2+ 53. Kc6 Qd4 54. Rc5+ Kxg4 55. Rc2 Qe4+ 56. Kc5 Qxc2+ 57. Kb4 Rb1+ 58. Ka5 Qc5 59. Ka6 Qxb5+ 60. Ka7 Qb7#) 49... Ra1 {[%emt 0:00:51]} (49... d4+ $142 50. Ke2 {[%mdl 64] Deflection} (50. Kxd4 Rd1+ 51. Rd3 Rxd3+ 52. Kxd3 f1=Q+) 50... Ra1 51. Kxf2 Rxa2+ 52. Kf3 d3) 50. Kxf2 $18 {[%emt 0:00:00] Threatens to win with b6.} Rxa2+ {[%emt 0:00:47]} 51. Ke3 $2 {[%emt 0:00:00]} (51. Kf3 $18 {And now b6 would win.} Ra7 52. b6) 51... h5 $1 $11 {[%emt 0:05:34]} 52. b6 {[%emt 0:00:00]} Ra8 $1 {[%emt 0:00:15]} 53. b7 {[%emt 0:00:00]} Rb8 {[%emt 0:00:02]} 54. Kf4 {[%emt 0:21:03]} hxg4 {[%emt 0:01:00]} 55. Kxg4 {[%emt 0:00:11] h5+ is the strong threat.} d4 {[%emt 0:03:07]} 56. Rb5 {[%emt 0:00:22]} f5+ {[%emt 0:09:08]} 57. Kf4 {[%emt 0:02:00]} Kh5 $2 {[%emt 0:00:34][%mdl 8192]} (57... Kg7 $11 58. Rb6 (58. Kxf5 d3 $11) 58... Kf7) 58. Rxf5+ {[%emt 0:00:15]} Kxh4 {[%emt 0:00:02]} 59. Rb5 {[%emt 0:00:17] White mates.} d3 {[%emt 0:00:35]} 60. Ke3 {[%emt 0:00:09]} d2 {[%emt 0:00:14]} 61. Kxd2 {[%emt 0:00:13]} Kg4 {[%emt 0:00:04]} 62. Ke3 {[%emt 0:00:35] Weighted Error Value: White=0.39/Black=0.42} 1-0

[Event "CZE-ch U16 Open 2023"]
[Site "Teplice"]
[Date "2023.03.11"]
[Round "1.2"]
[White "Tesar, Jakub"]
[Black "Dolensky, Filip"]
[Result "1/2-1/2"]
[ECO "B22"]
[WhiteElo "1960"]
[BlackElo "2108"]
[Annotator "TA"]
[PlyCount "98"]
[EventDate "2023.03.09"]
[EventType "swiss"]
[EventCountry "CZE"]
[SourceTitle "playchess.com"]
[Source "ChessBase"]
[SourceQuality "1"]
[TimeControl "40/5400+30:1800+30"]

{[%evp 19,98,26,25,8,17,0,0,0,21,0,0,0,9,6,33,19,54,48,136,61,129,37,36,25,77,46,54,60,41,54,43,28,104,69,72,82,135,130,147,113,250,52,50,27,32,0,49,-22,-18,-16,-16,-18,-45,-61,8,8,243,250,240,182,188,175,196,190,193,192,178,163,190,183,199,202,306,155,146,137,329,228,217,191,170]} 1. e4 {[%emt 0:00:03]} c5 {[%emt 0:00:49]} 2. c3 {[%emt 0:00:14]} d5 {[%emt 0:02:43]} 3. exd5 {[%emt 0:00:16]} Qxd5 {[%emt 0:00:18]} 4. d4 {[%emt 0:00:14]} Nf6 {[%emt 0:01:03]} 5. Nf3 {[%emt 0:00:13]} e6 {[%emt 0:02:32]} 6. Be3 {[%emt 0:01:02]} cxd4 {[%emt 0:00:53]} 7. cxd4 {[%emt 0:02:40]} Nc6 {[%emt 0:01:30]} 8. Nc3 {[%emt 0:03:04]} Qa5 {[%emt 0:04:31]} 9. Be2 {[%emt 0:06:07]} Be7 {[%emt 0:05:42]} 10. O-O {[%emt 0:00:59]} O-O {[%emt 0:01:50]} 11. Qb3 {[%emt 0:04:10] B22: Sicilian: 2 c3.} Rd8 {[%emt 0:10:19]} 12. Rfd1 {[%emt 0:04:28] [#]} Nd5 $146 {[%emt 0:27:00]} ({Predecessor:} 12... Qb4 13. Qc2 a6 14. a3 Qd6 15. Ng5 h6 16. Nge4 Nxe4 17. Nxe4 Qc7 18. Rac1 Bd7 {1-0 Berend,E (2326)-Arakhamia Grant,K (2380) Speed Chess (Women) Q2 blitz 2021 (8)}) 13. Bd2 {[%emt 0:06:30] The position is equal.} Qc7 {[%emt 0:04:16]} 14. Nxd5 {[%emt 0:18:25]} exd5 {[%emt 0:03:38]} 15. Rac1 {[%emt 0:01:59][%cal Of3e5]} Qd6 {[%emt 0:04:11] Inhibits Ne5.} 16. g3 {[%emt 0:12:49]} f6 {[%emt 0:06:42]} 17. Bf1 {[%emt 0:12:55]} g5 {[%emt 0:03:37]} 18. Bg2 {[%emt 0:04:28]} Bd7 {[%emt 0:07:54]} (18... Bf8 $14) 19. a3 {[%emt 0:03:44] White is more active.} (19. Qxb7 $6 Rab8 20. Qa6 Rxb2 $11) (19. h4 $16) 19... Rab8 {[%emt 0:01:41]} ({Black should play} 19... Be8 $14) 20. Bc3 {[%emt 0:06:33]} (20. h4 $1 $16 {[%cal Rh4g5]}) 20... Bf5 {[%emt 0:02:02]} 21. Nd2 {[%emt 0:00:46]} Bg6 {[%emt 0:00:44]} (21... Qd7 $11 {keeps the balance.}) 22. Nf1 {[%emt 0:00:20]} (22. Ne4 $5 {[%cal Re4d6]} Qc7 23. Nc5 $14) 22... Bf7 {[%emt 0:01:05]} 23. Ne3 {[%emt 0:00:28]} Qd7 {[%emt 0:00:48] Inhibits Nf5.} 24. Re1 {[%emt 0:00:55]} Bf8 {[%emt 0:00:32]} 25. Bf3 {[%emt 0:01:46][%cal Bg2f3,Bf3e2,Be2d3][%mdl 32]} h5 {[%emt 0:00:19]} (25... f5 $11 {remains equal.}) 26. Qd1 {[%emt 0:01:14]} g4 {[%emt 0:01:05]} 27. Be2 {[%emt 0:00:22][%cal Oh2h3]} f5 {[%emt 0:02:10]} (27... Bg6 $142) 28. Bd3 $16 {[%emt 0:01:21]} Be6 {[%emt 0:00:10]} 29. Qc2 {[%emt 0:00:33][%cal Re3f5]} Bh6 {[%emt 0:00:07]} (29... f4 $16) 30. Rcd1 $2 {[%emt 0:00:29]} (30. Bxf5 Bxf5 31. Nxf5 Bxc1 32. Rxc1 Qh7 $17) (30. Nxf5 $1 $18 Bg5 31. h4) 30... Rf8 $14 {[%emt 0:00:24]} 31. b4 {[%emt 0:01:10]} Rbc8 {[%emt 0:01:16][%cal Oc6d4]} 32. Qb3 {[%emt 0:01:45]} f4 {[%emt 0:01:08]} (32... Nd8 $11) 33. Nf1 (33. Ng2 $1 $14) 33... fxg3 {[%emt 0:01:13]} 34. hxg3 {[%emt 0:00:53]} Qf7 {[%emt 0:00:25]} (34... a6 {simplifies} 35. a4 Ne7 36. b5 axb5 37. Bxb5 Nc6) 35. Re2 {[%emt 0:00:38] [#]} h4 $1 {[%emt 0:00:30][%cal Oc6e5]} 36. b5 {[%emt 0:01:10] [#]} (36. gxh4 g3 37. Nxg3 (37. fxg3 Bg4 $17 {[%mdl 64] Skewer}) 37... Bg4 $17) (36. Qb2 Ne7) 36... h3 {[%emt 0:00:30]} 37. Nh2 $11 {[%emt 0:01:39]} (37. bxc6 $2 {perishes.} Qf3 $19) 37... Nb8 {[%emt 0:01:24]} (37... Ne5 $1 $11 {and Black stays safe.} 38. dxe5 (38. Rxe5 $2 {leads to mate.} Qxf2+ 39. Kh1 Qg2#) 38... d4) 38. Bb4 $18 {[%emt 0:00:47]} Rfe8 {[%emt 0:00:05]} 39. Rde1 {[%emt 0:01:06] aiming for Qb1.} Nd7 {[%emt 0:00:52] [#]} 40. Qb1 $1 $36 {[%emt 0:00:58][%mdl 2048] Black must now prevent Bg6. White is really pushing.} Kg7 {[%emt 0:01:39] [#] Repels Bg6} 41. Bg6 $1 {[%emt 0:14:12][%mdl 576] Decoy} Qxg6 {[%emt 0:01:49]} 42. Qxg6+ {[%emt 0:00:07][%mdl 64] Remove Defender} Kxg6 {[%emt 0:00:05]} 43. Rxe6+ {[%emt 0:00:05]} Rxe6 {[%emt 0:01:48]} 44. Rxe6+ {[%emt 0:00:06]} Kh5 {[%emt 0:06:21] ...Rc1+ is the strong threat.} 45. Nxg4 $1 {[%emt 0:02:40][%mdl 64] Deflection} Bg5 {[%emt 0:09:37]} (45... Bd2 {was necessary.}) 46. Ne3 {[%emt 0:01:40]} ({White should try} 46. Ne5 $18 Nxe5 47. Rxe5) 46... Bxe3 $16 {[%emt 0:06:36]} 47. Rxe3 {[%emt 0:00:20] Kh2 would be deadly.} Rc4 $2 {[%emt 0:02:00]} (47... Nf6 $16 {was worth a try.}) 48. Re7 {[%emt 0:12:12]} Nf6 {[%emt 0:00:27]} 49. f3 {[%emt 0:01:08] Repels Ne4. And now Kh2 would win.} Rc2 {[%emt 0:00:07] Weighted Error Value: White=0.32/Black=0.36} 1/2-1/2

[Event "CZE-ch U16 Open 2023"]
[Site "Teplice"]
[Date "2023.03.11"]
[Round "1.3"]
[White "Werner, Hong Quan Dan"]
[Black "Davidek, Zdenek"]
[Result "1/2-1/2"]
[ECO "C50"]
[WhiteElo "2085"]
[BlackElo "1957"]
[Annotator "TA"]
[PlyCount "110"]
[EventDate "2023.03.09"]
[EventType "swiss"]
[EventCountry "CZE"]
[SourceTitle "playchess.com"]
[Source "ChessBase"]
[SourceQuality "1"]
[TimeControl "40/5400+30:1800+30"]

{[%evp 14,110,11,5,47,0,22,0,4,0,0,0,0,0,0,0,9,1,11,-2,15,0,0,0,0,-2,0,-4,0,0,0,0,0,0,0,0,0,-10,0,-29,16,14,71,66,73,0,8,0,-7,-13,36,0,118,87,111,115,378,221,397,402,408,206,277,263,263,256,281,272,309,303,304,210,213,200,222,196,202,0,0,0,0,0,0,0,0,-228,-215,-224,-184,-205,0,0,0,0,0,0,0,0,11]} 1. e4 {[%emt 0:00:13]} e5 {[%emt 0:00:20]} 2. Nf3 {[%emt 0:00:20]} Nc6 {[%emt 0:00:10]} 3. Bc4 {[%emt 0:01:38]} Nf6 {[%emt 0:01:04]} 4. d3 {[%emt 0:00:12]} Bc5 {[%emt 0:00:17]} 5. c3 {[%emt 0:00:50]} O-O {[%emt 0:02:38]} 6. O-O {[%emt 0:01:44]} d6 {[%emt 0:05:49]} 7. Bb3 {[%emt 0:00:30] 7.Bb3 has lost popularity.} h6 {[%emt 0:01:10]} 8. Nbd2 {[%emt 0:00:21]} Be6 {[%emt 0:01:42] C54: Giuoco Piano: 4 c3 Nf6, main lines with 5 d4 and 5 d3.} 9. Re1 {[%emt 0:02:40]} (9. Bxe6 $14 fxe6 10. b4) 9... Re8 {[%emt 0:06:48]} 10. Nf1 {[%emt 0:04:39]} d5 {[%emt 0:09:02]} 11. Qc2 {[%emt 0:09:57]} Qd7 {[%emt 0:10:35]} 12. Be3 {[%emt 0:11:18] [#]} Bf8 $146 {[%emt 0:07:07]} ({Predecessor:} 12... Bb6 13. h3 Rad8 14. Ba4 Qd6 15. Rad1 Re7 16. Bxc6 bxc6 17. d4 Nxe4 18. dxe5 Qd7 19. Bxb6 axb6 20. Rxe4 {1-0 Akopian,V (2605)-Montecatine Rios,R (2345) Dos Hermanas 1992 (1)}) 13. h3 {[%emt 0:03:32]} a6 {[%emt 0:01:53]} 14. Rad1 {[%emt 0:03:57]} Rad8 {[%emt 0:03:13]} 15. Ng3 {[%emt 0:01:39]} Qc8 {[%emt 0:13:26]} 16. a3 {[%emt 0:07:39]} g6 {[%emt 0:03:32]} 17. Nh2 {[%emt 0:10:53]} Bg7 {[%emt 0:00:52]} 18. Qc1 {[%emt 0:02:56]} Kh7 {[%emt 0:03:59]} 19. f3 {[%emt 0:04:05]} Na5 {[%emt 0:08:54]} 20. Ba2 {[%emt 0:02:01]} dxe4 {[%emt 0:04:26]} 21. Bxe6 {[%emt 0:00:22]} Qxe6 {[%emt 0:00:52]} 22. fxe4 {[%emt 0:03:27]} Nb3 {[%emt 0:00:58]} 23. Qc2 {[%emt 0:00:07]} c5 {[%emt 0:02:25]} 24. Nf3 {[%emt 0:03:19]} Rd7 {[%emt 0:01:00]} 25. Nd2 {[%emt 0:10:46]} Nxd2 {[%emt 0:01:14]} 26. Rxd2 {[%emt 0:00:04]} (26. Qxd2 $5 {[%cal Re3c5]} Red8 27. Qc2 $11 (27. Bxc5 Rxd3 28. Qe2 Rxd1 $17)) 26... Qc6 {[%emt 0:01:02]} 27. c4 {[%emt 0:01:23]} Rde7 {[%emt 0:01:45]} (27... Red8 $11) 28. Ne2 {[%emt 0:01:07]} Nd7 {[%emt 0:02:42]} 29. Nc3 {[%emt 0:00:48]} (29. Rf1 $1 $16) 29... f5 $1 $11 {[%emt 0:00:11]} 30. Nd5 {[%emt 0:01:00]} Rf7 {[%emt 0:00:05]} 31. b4 {[%emt 0:03:29]} Bf8 {[%emt 0:01:51]} (31... cxb4 $11 32. axb4 Rc8) 32. g3 {[%emt 0:02:38]} (32. Rb1 {keeps more tension.} Be7 33. Qd1 fxe4 34. dxe4 cxb4 35. axb4 Qxc4 36. Qg4) 32... Bd6 {[%emt 0:00:37]} (32... f4 $11 {keeps the balance.} 33. gxf4 cxb4) 33. Rf1 {[%emt 0:00:57]} Ref8 {[%emt 0:01:29]} 34. Rdf2 {[%emt 0:00:22] White has more active pieces.} Nb8 $2 {[%emt 0:02:59][%mdl 8192]} (34... Bb8 $16) 35. Qd2 {[%emt 0:02:04]} (35. exf5 $142 gxf5 36. d4) 35... Qc8 $2 {[%emt 0:01:05]} (35... cxb4 36. axb4 f4) 36. Bxh6 $18 {[%emt 0:00:09]} Rg8 {[%emt 0:00:13]} 37. Kh2 {[%emt 0:03:17]} (37. Qg5 $142 {Strongly threatening Qh4.} Qd8 38. Qe3) 37... Nc6 {[%emt 0:00:35]} 38. Qg5 {[%emt 0:00:41]} Qd8 {[%emt 0:00:04]} 39. exf5 {[%emt 0:00:48]} Qxg5 {[%emt 0:00:23]} 40. Bxg5 {[%emt 0:00:05] And now fxg6+ would win.} gxf5 {[%emt 0:00:51]} 41. Nf6+ {[%emt 0:31:46]} (41. Rxf5 $6 Rxf5 42. Rxf5 cxb4 $18) 41... Kg6 {[%emt 0:01:16]} 42. Nxg8 {[%emt 0:00:00]} Kxg5 {[%emt 0:00:19] [#]} 43. g4 $1 {[%emt 0:00:00]} f4 {[%emt 0:02:42] [#]} 44. h4+ $1 {[%emt 0:00:00]} Kxh4 {[%emt 0:00:35] [#] ...Kg5 would be deadly.} 45. Kg1 $2 {[%emt 0:00:00]} ({Only move:} 45. g5 $1 $18 {[%cal Rg5g6]}) 45... Bf8 {[%emt 0:01:26]} 46. Rh2+ {[%emt 0:00:00]} Kg5 {[%emt 0:01:49]} ({Don't play} 46... Kxg4 47. b5 axb5 48. cxb5 $14 (48. Rg2+ $2 Kf5 $19)) 47. b5 {[%emt 0:00:00]} axb5 {[%emt 0:01:37]} (47... Nd4 48. a4 $14) 48. cxb5 {[%emt 0:00:00]} Nd4 {[%emt 0:00:05] Threatens to win with ...c4.} 49. Rh5+ $2 {[%emt 0:00:00]} (49. Kf2 $11 {and White stays safe.}) 49... Kxg4 $19 {[%emt 0:02:35]} 50. Nh6+ {[%emt 0:00:00]} Bxh6 $1 {[%emt 0:00:39]} 51. Rxh6 {[%emt 0:00:00] [#]} Nxb5 $2 {[%emt 0:01:16]} ({Black should play} 51... c4 $1 $19 {[%cal Rc4d3]} 52. dxc4 Nf3+ 53. Kg2 e4) 52. a4 {[%emt 0:00:00] The position is equal.} Nc3 {[%emt 0:05:53][%cal Of7d7]} 53. Kf2 {[%emt 0:00:00]} Nxa4 {[%emt 0:03:00]} 54. Rg1+ {[%emt 0:00:00]} Kf5 {[%emt 0:00:05]} 55. Rh5+ {[%emt 0:00:00]} ({But not} 55. Rhg6 Rf6 56. R6g5+ Ke6 $17) 55... Ke6 {[%emt 0:04:04] Quite a comeback for White.   Weighted Error Value: White=0.29 (precise) /Black=0.29 (precise)} 1/2-1/2

[Event "CZE-ch U16 Open 2023"]
[Site "Teplice"]
[Date "2023.03.11"]
[Round "1.4"]
[White "Mohapl, Tomas"]
[Black "Paseka, Matyas"]
[Result "0-1"]
[ECO "E71"]
[WhiteElo "1946"]
[BlackElo "2082"]
[Annotator "TA"]
[PlyCount "66"]
[EventDate "2023.03.09"]
[EventType "swiss"]
[EventCountry "CZE"]
[SourceTitle "playchess.com"]
[Source "ChessBase"]
[SourceQuality "1"]
[TimeControl "40/5400+30:1800+30"]

{[%evp 9,66,36,45,41,30,19,70,44,48,40,52,33,49,38,43,33,45,44,39,21,25,17,5,-46,32,37,36,-20,-13,-19,-19,-20,0,0,79,93,84,-110,-97,-217,-200,-226,-222,-608,-628,-816,-725,-1357,-1353,-29987,-29988,-29994,-29995,-29995,-522,-29996,-29997,-29997,-29998]} 1. d4 {[%emt 0:00:03]} Nf6 {[%emt 0:00:08]} 2. c4 {[%emt 0:00:19]} g6 {[%emt 0:00:06]} 3. Nc3 {[%emt 0:00:26]} Bg7 {[%emt 0:00:12]} 4. e4 {[%emt 0:00:45]} d6 {[%emt 0:00:07]} 5. h3 {[%emt 0:00:42]} Nbd7 {[%emt 0:00:10]} 6. Be3 {[%emt 0:04:08] E71: King's Indian: 4 e4 d6 5 h3.} e5 {[%emt 0:00:31]} 7. d5 {[%emt 0:01:09]} h5 {[%emt 0:00:09]} (7... Nc5 $11) 8. b4 {[%emt 0:17:50] [#] White is slightly better.} Bh6 $146 {[%emt 0:05:01]} ({Predecessor:} 8... a5 9. a3 h4 10. c5 Nh5 11. cxd6 cxd6 12. Nb5 O-O 13. Nf3 Ndf6 14. Nd2 Nf4 {0-1 Gharibyan,M (2479)-Ivic,V (2610) EU-ch 22nd Terme Catez 2022 (6)}) 9. Bxh6 {[%emt 0:03:11]} Rxh6 {[%emt 0:00:08]} 10. Bd3 {[%emt 0:03:05]} h4 {[%emt 0:04:19]} 11. Qc1 {[%emt 0:09:17]} Rh8 {[%emt 0:00:27]} 12. Nf3 {[%emt 0:03:13][%cal Oc4c5]} Nh5 {[%emt 0:03:14]} 13. Ne2 {[%emt 0:00:33] Inhibits Nf4.} b6 {[%emt 0:04:48]} 14. Qc3 {[%emt 0:19:04]} Qf6 {[%emt 0:10:44]} 15. Bc2 {[%emt 0:02:00]} Kf8 {[%emt 0:06:57]} 16. Ba4 {[%emt 0:03:22]} (16. O-O $11) 16... Kg7 {[%emt 0:05:08]} (16... a5 $1 $15) 17. Bc6 $36 {[%emt 0:02:23][%mdl 2048] White has good play.} Rb8 {[%emt 0:00:28][%cal Oa7a5,Ba8b8,Bb8b6,Bb6b2][%mdl 32]} 18. a4 {[%emt 0:05:27] [#]} ({White should play} 18. O-O $14) 18... a5 $1 $11 {[%emt 0:04:34][%mdl 64] Deflection} 19. bxa5 {[%emt 0:04:38]} Nc5 {[%emt 0:00:09] Inhibits a6.} (19... bxa5 $5 {[%cal Rd7c5]} 20. Bxd7 (20. Qxa5 $2 {perishes.} Nc5 $19) 20... Bxd7 $15) 20. axb6 {[%emt 0:00:51]} Rxb6 {[%emt 0:00:14] ...Rb3 would be deadly.} 21. Nd2 {[%emt 0:04:10] Inhibits Rb3.} Nf4 {[%emt 0:30:20]} (21... Qg5 $1 $11 {keeps the balance.} 22. Nf3 Qh6) 22. Nxf4 $16 {[%emt 0:02:39]} Qxf4 {[%emt 0:00:11]} 23. Qe3 {[%emt 0:10:14]} (23. O-O $16 {and life is bright.}) 23... Rb2 {[%emt 0:03:15] Black has more active pieces. The white rooks are badly placed.} 24. Bb5 {[%emt 0:01:50]} (24. Qxf4 $17 {might work better.} exf4 25. a5) 24... Qxe3+ $19 {[%emt 0:02:14]} 25. fxe3 {[%emt 0:00:06] [#]} Rh5 $1 {[%emt 0:00:10][%cal Bh8h5,Bh5g5,Bg5g3,Bg3e3][%mdl 32] aiming for ...Rg5.} 26. a5 $2 {[%emt 0:00:53]} (26. Rh2 Rh8 27. Kd1) 26... Rg5 {[%emt 0:01:16]} 27. Rg1 {[%emt 0:00:47]} Rg3 {[%emt 0:03:08]} 28. a6 {[%emt 0:00:47]} Rxe3+ {[%emt 0:00:23]} 29. Kf1 {[%emt 0:00:27] White is weak on the dark squares} Rxd2 {[%emt 0:00:23]} 30. a7 {[%emt 0:00:18]} Nxe4 {[%emt 0:02:24][%cal Re4g3]} 31. Rh1 {[%emt 0:00:31]} Ng3+ {[%emt 0:00:06]} 32. Kg1 {[%emt 0:00:05]} Ree2 {[%emt 0:00:05][%csl Gd2][%cal Re2g2]} 33. Rh2 {[%emt 0:00:44] [#]} Bxh3 $1 {[%emt 0:00:06] Weighted Error Value: White=0.88/Black=0.15 (very precise)} 0-1